bitfinex/quotes_SOLUSD_20250106
["timestamp","ask_amount","ask_price","bid_price","bid_amount"]
[1736147659750,9.16888848,214.72,214.65,9.21548848]
[1736147660051,9.16888848,214.71,214.65,0.0466]
[1736147661356,9.16888848,214.72,214.65,9.21548848]
[1736147661843,23.776884,214.75,214.66,9.16888848]
[1736147662050,9.16888848,214.74,214.66,9.16888848]
[1736147663135,23.776884,214.75,214.65,9.21548848]
[1736147663136,9.16888848,214.73,214.65,9.21548848]
[1736147665555,9.16888848,214.73,214.66,9.16888848]
[1736147666639,23.776884,214.75,214.66,9.16888848]
[1736147666844,9.16888848,214.74,214.66,9.16888848]
[1736147667041,2.02,214.78,214.69,9.16888848]
[1736147667246,11.18888848,214.78,214.71,9.16888848]
[1736147668335,9.16888848,214.78,214.71,9.16888848]
[1736147669359,32.94577248,214.79,214.71,9.16888848]
[1736147669544,32.94577248,214.79,214.72,9.16888848]
[1736147670581,2.02,214.81,214.74,9.16888848]
[1736147670890,7.31004012,214.83,214.77,9.16888848]
[1736147671078,9.16888848,214.83,214.77,9.16888848]
[1736147671445,11.18888848,214.84,214.77,9.16888848]
[1736147671769,2.02,214.84,214.78,9.16888848]
[1736147672144,11.18888848,214.84,214.77,9.16888848]
[1736147673547,9.16888848,214.84,214.77,9.16888848]
[1736147673948,32.94577248,214.85,214.78,9.16888848]
[1736147682501,32.94577248,214.85,214.77,9.16888848]
[1736147685208,9.16888848,214.84,214.75,1.5938]
[1736147685506,9.16888848,214.84,214.77,9.16888848]
[1736147686607,9.16888848,214.85,214.78,9.16888848]
[1736147687312,23.776884,214.86,214.78,9.16888848]
[1736147687493,9.16888848,214.85,214.78,9.16888848]
[1736147688108,43.776884,214.87,214.78,9.16888848]
[1736147688311,9.16888848,214.85,214.78,9.16888848]
[1736147688805,20.0,214.87,214.78,9.16888848]
[1736147689012,9.16888848,214.85,214.78,9.16888848]
[1736147689217,11.18888848,214.86,214.78,9.16888848]
[1736147689715,9.16888848,214.85,214.78,9.16888848]
[1736147694012,9.16888848,214.86,214.79,9.16888848]
[1736147694326,2.02,214.87,214.81,9.16888848]
[1736147696615,43.62521701,214.97,214.89,20.0]
[1736147696821,7.31004012,214.96,214.95,9.16888848]
[1736147697912,23.776884,215.03,214.95,9.16888848]
[1736147698112,23.776884,215.03,214.96,9.16888848]
[1736147700026,9.16888848,215.0,214.94,1.6373]
[1736147700222,23.776884,214.99,214.94,1.6373]
[1736147700715,23.776884,214.99,214.94,10.80618848]
[1736147700915,2.06,215.04,214.94,10.80618848]
[1736147700916,9.16888848,215.01,214.94,10.80618848]
[1736147702028,23.776884,215.03,214.97,9.16888848]
[1736147702217,11.22888848,215.04,214.97,9.16888848]
[1736147702534,2.06,215.04,214.98,9.16888848]
[1736147703611,11.22888848,215.04,214.97,9.16888848]
[1736147703832,9.16888848,215.01,214.94,1.6373]
[1736147704140,9.16888848,215.0,214.94,1.6373]
[1736147704843,9.16888848,214.99,214.94,1.6373]
[1736147705709,9.16888848,214.96,214.89,10.72028848]
[1736147706922,9.16888848,214.93,214.89,1.5514]
[1736147707228,9.16888848,214.92,214.85,9.16888848]
[1736147707539,9.16888848,214.91,214.84,10.69098848]
[1736147708125,9.16888848,214.91,214.85,9.16888848]
[1736147709240,9.16888848,214.92,214.85,9.16888848]
[1736147712040,9.16888848,214.91,214.85,9.16888848]
[1736147712563,9.16888848,214.9,214.84,1.5221]
[1736147712720,9.16888848,214.89,214.84,1.5221]
[1736147713224,9.16888848,214.88,214.84,1.5221]
[1736147713725,9.16888848,214.87,214.84,1.5221]
[1736147714542,36.67555392,214.94,214.84,1.5221]
[1736147714543,9.16888848,214.86,214.84,1.5221]
[1736147714861,9.16888848,214.86,214.82,6.469]
[1736147714862,9.16888848,214.85,214.79,9.16888848]
[1736147715146,9.16888848,214.84,214.78,1.5149]
[1736147715331,9.16888848,214.83,214.78,1.5149]
[1736147715539,9.16888848,214.84,214.78,1.5149]
[1736147717048,9.16888848,214.84,214.78,10.68378848]
[1736147718146,9.16888848,214.82,214.78,1.5149]
[1736147718359,9.16888848,214.79,214.73,9.16888848]
[1736147718957,9.16888848,214.78,214.72,1.518]
[1736147719257,9.16888848,214.78,214.72,10.68688848]
[1736147719427,9.16888848,214.79,214.72,10.68688848]
[1736147720254,9.16888848,214.79,214.72,1.518]
[1736147720456,9.16888848,214.78,214.72,10.68688848]
[1736147720753,23.776884,214.8,214.72,1.518]
[1736147720933,9.16888848,214.84,214.77,9.16888848]
[1736147721337,9.16888848,214.83,214.76,9.16888848]
[1736147721747,9.16888848,214.8,214.72,2.21653212]
[1736147722052,23.776884,214.83,214.74,9.16888848]
[1736147722053,9.16888848,214.81,214.74,9.16888848]
[1736147722244,9.16888848,214.82,214.75,9.16888848]
[1736147723057,9.16888848,214.81,214.72,2.21642234]
[1736147723266,9.16888848,214.81,214.74,9.16888848]
[1736147723448,9.16888848,214.8,214.74,9.16888848]
[1736147724959,9.16888848,214.81,214.74,9.16888848]
[1736147725463,23.776884,214.8,214.74,9.16888848]
[1736147725639,9.16888848,214.79,214.72,10.68688848]
[1736147725838,9.16888848,214.78,214.72,1.518]
[1736147726648,32.94577248,214.77,214.72,1.518]
[1736147727466,9.16888848,214.76,214.72,1.518]
[1736147728346,9.16888848,214.77,214.72,1.518]
[1736147728859,32.94577248,214.78,214.72,1.518]
[1736147729167,23.776884,214.78,214.73,9.16888848]
[1736147729340,2.06,214.79,214.73,9.16888848]
[1736147729544,9.16888848,214.81,214.74,9.16888848]
[1736147729744,11.20888848,214.83,214.76,9.16888848]
[1736147729957,2.04,214.83,214.77,9.16888848]
[1736147730168,2.04,214.83,214.78,9.16888848]
[1736147730344,23.776884,214.84,214.78,9.16888848]
[1736147730659,11.20888848,214.85,214.78,9.16888848]
[1736147730836,2.04,214.85,214.79,9.16888848]
[1736147731042,2.04,214.85,214.79,14.3151841]
[1736147731653,14.3151841,214.86,214.79,14.3151841]
[1736147731965,2.04,214.86,214.8,14.3151841]
[1736147732167,23.776884,214.86,214.8,14.3151841]
[1736147734568,2.04,214.88,214.82,14.3151841]
[1736147735554,23.776884,214.87,214.81,14.3151841]
[1736147737866,2.04,214.9,214.83,14.3151841]
[1736147738067,2.04,214.9,214.84,14.3151841]
[1736147738273,16.3551841,214.9,214.83,14.3151841]
[1736147738569,14.3151841,214.9,214.83,14.3151841]
[1736147738768,16.3551841,214.9,214.83,14.3151841]
[1736147739067,23.776884,214.88,214.81,14.3151841]
[1736147739477,16.3551841,214.9,214.77,0.69814744]
[1736147739665,16.3551841,214.9,214.82,14.3151841]
[1736147741272,14.3151841,214.9,214.82,14.3151841]
[1736147741451,16.3551841,214.9,214.82,14.3151841]
[1736147742155,20.0,214.79,214.77,0.69814744]
[1736147742360,23.776884,214.74,214.65,1.6446]
[1736147742598,14.3151841,214.67,214.65,1.6446]
[1736147743670,30.0,214.66,214.65,1.6446]
[1736147746082,30.0,214.66,214.65,0.0466]
[1736147746456,44.3151841,214.66,214.65,0.0466]
[1736147746953,30.0,214.66,214.65,0.0466]
[1736147747359,44.3151841,214.66,214.65,0.0466]
[1736147748160,14.3151841,214.66,214.65,0.0466]
[1736147750388,2.04,214.67,214.65,0.0466]
[1736147750572,22.04,214.68,214.65,0.0466]
[1736147750774,2.04,214.68,214.65,0.0466]
[1736147751085,30.0,214.66,214.65,0.0466]
[1736147757286,30.0,214.66,214.65,14.3617841]
[1736147758906,30.0,214.66,214.65,0.0466]
[1736147766833,53.776884,214.66,214.65,0.0466]
[1736147767567,30.0,214.66,214.65,0.0466]
[1736147768624,68.0920681,214.66,214.65,0.0466]
[1736147770748,23.776884,214.61,214.52,1.6399]
[1736147770952,14.3151841,214.54,214.52,1.6399]
[1736147771538,14.3151841,214.55,214.52,1.6399]
[1736147772059,30.0,214.53,214.52,1.6399]
[1736147772465,29.6965,214.53,214.52,1.6399]
[1736147773253,29.6965,214.53,214.51,0.06845067]
[1736147775251,29.6965,214.53,214.47,1.5119]
[1736147776851,29.6965,214.53,214.47,15.8270841]
[1736147777155,29.6965,214.53,214.47,1.5119]
[1736147777657,38.0920681,214.52,214.47,1.5119]
[1736147777956,30.0,214.5,214.49,14.3151841]
[1736147779553,30.0,214.5,214.47,0.69912158]
[1736147779745,30.0,214.5,214.43,6.5166]
[1736147779932,30.0,214.5,214.49,14.3151841]
[1736147782149,30.0,214.5,214.46,14.3151841]
[1736147783363,30.0,214.5,214.45,14.3151841]
[1736147784455,30.0,214.5,214.46,14.3151841]
[1736147784653,30.0,214.5,214.48,14.3151841]
[1736147785666,30.0,214.5,214.49,14.3151841]
[1736147786739,2.2,214.57,214.44,12.35749942]
[1736147786972,38.0920681,214.56,214.49,14.3151841]
[1736147787164,38.0920681,214.56,214.43,6.5166]
[1736147787469,30.0,214.49,214.48,14.3151841]
[1736147794267,30.0,214.49,214.47,14.3151841]
[1736147794976,30.0,214.49,214.46,14.3151841]
[1736147797445,23.776884,214.48,214.43,14.3151841]
[1736147797649,30.0,214.47,214.43,14.3151841]
[1736147800174,30.0,214.47,214.38,0.06849218]
[1736147800346,30.0,214.47,214.41,14.3151841]
[1736147801169,23.776884,214.46,214.41,14.3151841]
[1736147801372,30.0,214.44,214.39,14.3151841]
[1736147801957,30.0,214.44,214.41,14.3151841]
[1736147804381,30.0,214.44,214.39,14.3151841]
[1736147807762,31.824184,214.39,214.38,9.218e-05]
[1736147807956,20.0,214.32,214.22,14.3151841]
[1736147808178,14.3151841,214.28,214.21,1.5792]
[1736147808378,14.3151841,214.26,214.21,1.5792]
[1736147809065,14.3151841,214.27,214.21,1.5792]
[1736147809776,14.3151841,214.28,214.21,1.5792]
[1736147810098,14.3151841,214.29,214.22,14.3151841]
[1736147810263,14.3151841,214.29,214.21,15.8943841]
[1736147810467,14.3151841,214.28,214.21,15.8943841]
[1736147811067,2.22,214.27,214.23,14.3151841]
[1736147813205,2.22,214.31,214.26,14.3151841]
[1736147813484,2.22,214.32,214.26,14.3151841]
[1736147813686,2.22,214.31,214.26,14.3151841]
[1736147814492,2.22,214.31,214.27,14.3151841]
[1736147815783,2.22,214.31,214.21,1.5792]
[1736147815784,2.22,214.31,214.26,14.3151841]
[1736147816666,2.22,214.31,214.27,14.3151841]
[1736147817360,2.22,214.31,214.21,1.5792]
[1736147817361,2.22,214.31,214.28,14.3151841]
[1736147817566,14.3151841,214.36,214.29,14.3151841]
[1736147817870,26.096884,214.35,214.29,14.3151841]
[1736147818405,8.0473,214.39,214.31,14.3151841]
[1736147818406,14.3151841,214.38,214.31,14.3151841]
[1736147818571,2.32,214.37,214.33,14.3151841]
[1736147818771,30.0,214.34,214.32,14.3151841]
[1736147819098,2.32,214.37,214.32,14.3151841]
[1736147821462,2.32,214.37,214.33,14.3151841]
[1736147822292,30.0,214.34,214.33,14.3151841]
[1736147825684,22.32,214.41,214.33,14.3151841]
[1736147825890,2.32,214.41,214.36,14.3151841]
[1736147826076,30.0,214.37,214.36,14.3151841]
[1736147826480,30.0,214.37,214.28,20.0]
[1736147826681,30.0,214.37,214.33,14.3151841]
[1736147827186,30.0,214.37,214.36,14.3151841]
[1736147832700,20.0,214.44,214.36,14.3151841]
[1736147833010,20.0,214.44,214.4,14.3151841]
[1736147833306,30.0,214.41,214.4,14.3151841]
[1736147833687,30.0,214.41,214.39,14.3151841]
[1736147835005,30.0,214.41,214.37,14.3151841]
[1736147835177,30.0,214.41,214.36,14.3151841]
[1736147836200,30.0,214.41,214.37,14.3151841]
[1736147838785,14.3151841,214.4,214.3,1.6372]
[1736147838988,14.3151841,214.38,214.31,14.3151841]
[1736147839407,14.3151841,214.36,214.27,6.6099]
[1736147839732,14.3151841,214.36,214.28,14.3151841]
[1736147839944,64.3151841,214.35,214.28,14.3151841]
[1736147840620,50.0,214.35,214.29,14.3151841]
[1736147845809,30.0,214.35,214.34,14.3151841]
[1736147847112,30.0,214.35,214.34,9.19901609]
[1736147847513,2.26,214.41,214.34,9.19901609]
[1736147847731,2.26,214.41,214.37,9.19901609]
[1736147847930,30.0,214.38,214.31,18.1099]
[1736147848108,30.0,214.38,214.37,9.19901609]
[1736147848512,2.26,214.46,214.37,9.19901609]
[1736147848815,20.0,214.45,214.41,9.19901609]
[1736147849025,30.0,214.42,214.34,22.24203402]
[1736147849212,30.0,214.42,214.41,14.3666592]
[1736147850133,2.26,214.48,214.41,14.3666592]
[1736147850340,2.26,214.48,214.44,14.3666592]
[1736147850513,30.0,214.45,214.44,14.3666592]
[1736147852319,2.26,214.54,214.44,14.3666592]
[1736147852642,2.26,214.54,214.48,14.3666592]
[1736147852812,16.6266592,214.54,214.48,14.3666592]
[1736147853011,20.0,214.51,214.48,14.3666592]
[1736147853212,20.0,214.51,214.45,14.3666592]
[1736147854154,38.1435432,214.5,214.43,14.3666592]
[1736147854714,23.776884,214.5,214.43,14.3666592]
[1736147855017,38.1435432,214.5,214.43,14.3666592]
[1736147855430,30.0,214.48,214.43,14.3666592]
[1736147856017,30.0,214.48,214.44,14.3666592]
[1736147857419,30.0,214.48,214.46,14.3666592]
[1736147857618,30.0,214.48,214.45,14.3666592]
[1736147858713,30.0,214.48,214.46,14.3666592]
[1736147859126,30.0,214.48,214.47,14.3666592]
[1736147860250,30.0,214.48,214.46,14.3666592]
[1736147862642,30.0,214.48,214.43,14.3666592]
[1736147864440,30.0,214.48,214.42,14.3666592]
[1736147866051,44.3666592,214.48,214.41,14.3666592]
[1736147866427,44.3666592,214.48,214.4,14.3666592]
[1736147867957,23.776884,214.47,214.4,14.3666592]
[1736147868147,44.3666592,214.45,214.38,14.3666592]
[1736147868843,44.3666592,214.45,214.37,1.6329]
[1736147869151,39.19787019,214.45,214.38,9.19787019]
[1736147869654,39.19787019,214.45,214.32,0.6995645]
[1736147869655,23.776884,214.44,214.32,0.6995645]
[1736147869959,32.26,214.43,214.38,9.19787019]
[1736147871062,32.26,214.43,214.38,14.37147943]
[1736147871567,32.26,214.43,214.4,14.37147943]
[1736147872238,32.26,214.43,214.39,14.37147943]
[1736147873547,2.26,214.43,214.39,14.37147943]
[1736147874763,2.26,214.43,214.4,14.37147943]
[1736147875134,2.26,214.43,214.42,14.37147943]
[1736147875333,2.26,214.48,214.42,14.37147943]
[1736147875537,2.26,214.49,214.44,14.37147943]
[1736147875770,2.26,214.49,214.45,14.37147943]
[1736147875936,2.26,214.51,214.45,14.37147943]
[1736147876439,38.14836343,214.5,214.43,14.37147943]
[1736147877134,38.14836343,214.5,214.42,14.37147943]
[1736147877537,30.0,214.45,214.42,14.37147943]
[1736147879263,30.0,214.45,214.43,14.37147943]
[1736147881254,14.37147943,214.49,214.42,14.37147943]
[1736147881458,14.37147943,214.48,214.41,14.37147943]
[1736147881657,23.776884,214.46,214.4,14.37147943]
[1736147881851,14.37147943,214.44,214.37,14.37147943]
[1736147882050,53.776884,214.43,214.37,14.37147943]
[1736147882256,55.996884,214.43,214.36,14.37147943]
[1736147882759,70.36836343,214.43,214.36,14.37147943]
[1736147883764,14.37147943,214.42,214.35,14.37147943]
[1736147883970,30.0,214.41,214.35,14.37147943]
[1736147885373,44.37147943,214.41,214.35,14.37147943]
[1736147885865,14.37147943,214.39,214.32,14.37147943]
[1736147886056,64.37147943,214.38,214.31,14.37147943]
[1736147886252,14.37147943,214.35,214.28,14.37147943]
[1736147886458,16.59147943,214.35,214.28,14.37147943]
[1736147887072,30.0,214.34,214.28,14.37147943]
[1736147887673,44.37147943,214.34,214.24,1.5043]
[1736147887862,14.37147943,214.33,214.26,14.37147943]
[1736147888048,30.0,214.32,214.26,14.37147943]
[1736147888367,23.776884,214.31,214.25,14.37147943]
[1736147889189,30.0,214.29,214.24,14.37147943]
[1736147889364,30.0,214.29,214.23,14.37147943]
[1736147889888,30.0,214.29,214.24,14.37147943]
[1736147890184,30.0,214.29,214.26,14.37147943]
[1736147890393,30.0,214.29,214.25,14.37147943]
[1736147891174,30.0,214.29,214.19,2.20444493]
[1736147891175,30.0,214.29,214.26,14.37147943]
[1736147892082,30.0,214.29,214.25,14.37147943]
[1736147892390,30.0,214.29,214.23,14.37147943]
[1736147892754,30.0,214.29,214.22,14.37147943]
[1736147892755,23.776884,214.28,214.22,14.37147943]
[1736147892974,32.22,214.27,214.22,14.37147943]
[1736147893180,32.22,214.27,214.21,14.37147943]
[1736147893982,32.22,214.27,214.23,14.37147943]
[1736147894183,32.22,214.27,214.24,14.37147943]
[1736147895877,30.0,214.27,214.26,14.37147943]
[1736147896070,2.22,214.32,214.26,14.37147943]
[1736147896265,2.22,214.32,214.27,14.37147943]
[1736147897281,20.0,214.31,214.26,14.37147943]
[1736147898379,2.22,214.32,214.27,14.37147943]
[1736147898558,30.0,214.28,214.27,14.37147943]
[1736147898760,30.0,214.28,214.19,1.5043]
[1736147898761,30.0,214.28,214.19,8.0653]
[1736147898958,30.0,214.28,214.22,14.37147943]
[1736147899460,30.0,214.27,214.23,14.37147943]
[1736147899978,30.0,214.27,214.22,14.37147943]
[1736147901571,30.0,214.27,214.19,1.5043]
[1736147901770,30.0,214.27,214.21,14.37147943]
[1736147903189,44.37147943,214.27,214.19,1.5043]
[1736147903371,30.0,214.27,214.19,1.5043]
[1736147903577,30.0,214.27,214.21,14.37147943]
[1736147904391,14.37147943,214.23,214.08,13.5334146]
[1736147904691,7.933,214.25,214.17,14.37147943]
[1736147904692,32.22,214.22,214.17,14.37147943]
[1736147904870,32.22,214.22,214.16,14.37147943]
[1736147905471,32.22,214.22,214.15,14.37147943]
[1736147905682,32.22,214.22,214.16,14.37147943]
[1736147905884,32.22,214.22,214.16,13.37147943]
[1736147906807,23.776884,214.2,214.07,0.70032045]
[1736147907108,30.0,214.19,214.14,14.37147943]
[1736147907496,30.0,214.19,214.15,14.37147943]
[1736147908199,30.0,214.19,214.14,14.37147943]
[1736147908417,14.37147943,214.21,214.14,14.37147943]
[1736147908615,23.776884,214.2,214.15,14.37147943]
[1736147909044,23.776884,214.21,214.15,14.37147943]
[1736147909231,1.6554,214.29,214.19,14.37147943]
[1736147909541,14.37147943,214.23,214.17,14.37147943]
[1736147909705,23.776884,214.22,214.16,14.37147943]
[1736147909907,38.14836343,214.22,214.15,14.37147943]
[1736147910602,23.776884,214.22,214.16,14.37147943]
[1736147911033,14.37147943,214.24,214.17,14.37147943]
[1736147911340,20.0,214.21,214.17,14.37147943]
[1736147911518,30.0,214.19,214.18,14.37147943]
[1736147912420,2.22,214.24,214.18,14.37147943]
[1736147912636,23.776884,214.26,214.2,14.37147943]
[1736147912841,2.22,214.25,214.2,14.37147943]
[1736147914431,2.22,214.25,214.21,14.37147943]
[1736147914635,2.22,214.3,214.24,14.37147943]
[1736147914817,2.22,214.3,214.18,0.70008725]
[1736147915021,14.37147943,214.29,214.22,14.37147943]
[1736147915216,14.37147943,214.3,214.23,14.37147943]
[1736147915448,20.0,214.28,214.24,14.37147943]
[1736147915754,20.0,214.28,214.23,14.37147943]
[1736147915927,20.0,214.28,214.22,14.37147943]
[1736147916843,20.0,214.28,214.23,14.37147943]
[1736147917143,20.0,214.28,214.24,14.37147943]
[1736147917446,20.0,214.28,214.23,14.37147943]
[1736147917656,20.0,214.28,214.22,14.37147943]
[1736147918458,34.37147943,214.29,214.22,14.37147943]
[1736147919327,34.37147943,214.29,214.21,14.37147943]
[1736147919730,20.0,214.27,214.23,14.37147943]
[1736147919930,16.59147943,214.3,214.23,14.37147943]
[1736147920134,23.776884,214.29,214.23,14.37147943]
[1736147920333,34.37147943,214.31,214.24,14.37147943]
[1736147920623,2.22,214.3,214.24,14.37147943]
[1736147921058,2.22,214.3,214.24,9.20969927]
[1736147921431,2.22,214.3,214.25,9.20969927]
[1736147921633,30.0,214.26,214.19,11.6714]
[1736147921940,30.0,214.26,214.23,9.20969927]
[1736147922128,30.0,214.26,214.22,9.20969927]
[1736147922951,30.0,214.26,214.23,9.20969927]
[1736147923879,30.0,214.26,214.24,9.20969927]
[1736147924365,30.0,214.25,214.16,1.5443]
[1736147924569,30.0,214.25,214.18,9.20969927]
[1736147925573,30.0,214.25,214.2,9.20969927]
[1736147926650,30.0,214.25,214.22,9.20969927]
[1736147927150,29.893893,214.25,214.22,9.20969927]
[1736147927681,29.893893,214.25,214.17,0.70016695]
[1736147927865,29.893893,214.25,214.18,9.20969927]
[1736147928058,29.893893,214.25,214.21,9.20969927]
[1736147929052,29.893893,214.25,214.21,14.39395844]
[1736147929251,29.893893,214.25,214.16,1.5443]
[1736147929446,29.893893,214.25,214.19,14.39395844]
[1736147930070,20.0,214.25,214.19,14.39395844]
[1736147930274,14.39395844,214.26,214.16,1.5443]
[1736147930477,23.776884,214.27,214.19,14.39395844]
[1736147931269,20.0,214.24,214.19,14.39395844]
[1736147931475,23.776884,214.23,214.11,1.6269]
[1736147931647,43.776884,214.23,214.15,14.39395844]
[1736147931975,43.776884,214.23,214.17,14.39395844]
[1736147932166,43.776884,214.23,214.11,2.3272864]
[1736147932352,43.776884,214.23,214.15,14.39395844]
[1736147932554,20.0,214.2,214.15,14.39395844]
[1736147933465,20.0,214.2,214.14,14.39395844]
[1736147933675,30.0,214.18,214.15,14.39395844]
[1736147933875,30.0,214.18,214.16,14.39395844]
[1736147934376,30.0,214.18,214.15,14.39395844]
[1736147934946,30.0,214.18,214.16,14.39395844]
[1736147935147,44.39395844,214.18,214.06,2.25854329]
[1736147935457,30.0,214.18,214.12,14.39395844]
[1736147936269,20.0,214.15,214.1,14.39395844]
[1736147936466,30.0,214.14,214.1,14.39395844]
[1736147937052,30.0,214.14,214.09,14.39395844]
[1736147937254,16.81395844,214.13,214.0,1.6395]
[1736147937458,2.42,214.13,214.07,14.39395844]
[1736147937695,30.0,214.12,214.07,14.39395844]
[1736147938405,23.776884,214.11,214.05,14.39395844]
[1736147938604,30.0,214.1,214.05,14.39395844]
[1736147938808,30.0,214.1,214.06,14.39395844]
[1736147939505,30.0,214.1,214.07,14.39395844]
[1736147939687,30.0,214.1,214.08,14.39395844]
[1736147940087,30.0,214.1,214.09,14.39395844]
[1736147940489,22.42,214.14,214.09,14.39395844]
[1736147940694,22.42,214.14,214.1,14.39395844]
[1736147940873,30.0,214.11,214.09,14.39395844]
[1736147941193,30.0,214.11,214.02,0.70060055]
[1736147941194,30.0,214.11,214.1,14.39395844]
[1736147941892,2.42,214.2,214.1,14.39395844]
[1736147942094,2.42,214.2,214.14,14.39395844]
[1736147943086,2.42,214.2,214.16,14.39395844]
[1736147943287,6.584,214.23,214.16,14.39395844]
[1736147943599,2.42,214.2,214.15,14.39395844]
[1736147944103,2.42,214.2,214.14,14.39395844]
[1736147944392,23.776884,214.19,214.14,14.39395844]
[1736147944623,23.776884,214.19,214.13,14.39395844]
[1736147944777,23.776884,214.19,214.14,14.39395844]
[1736147945093,23.776884,214.19,214.09,1.5624]
[1736147945094,23.776884,214.19,214.13,14.39395844]
[1736147945292,30.0,214.16,214.13,14.39395844]
[1736147945502,30.0,214.16,214.15,14.39395844]
[1736147946300,2.42,214.2,214.15,14.39395844]
[1736147947511,2.42,214.2,214.14,14.39395844]
[1736147948601,2.42,214.2,214.16,14.39395844]
[1736147949099,2.42,214.2,214.15,14.39395844]
[1736147949297,30.0,214.16,214.09,2.26281152]
[1736147949471,30.0,214.16,214.15,14.39395844]
[1736147949897,14.39395844,214.27,214.15,14.39395844]
[1736147950101,2.42,214.26,214.19,14.39395844]
[1736147950397,13.24991694,214.3,214.13,0.70025403]
[1736147950398,30.0,214.2,214.13,0.70025403]
[1736147951102,30.0,214.2,214.19,9.21178488]
[1736147951399,30.0,214.2,214.13,51.20025403]
[1736147951578,30.0,214.2,214.19,9.21178488]
[1736147951994,2.42,214.26,214.19,9.21178488]
[1736147952406,22.42,214.26,214.21,9.21178488]
[1736147952583,30.0,214.22,214.17,36.84713952]
[1736147952783,30.0,214.22,214.18,1.5495]
[1736147952997,30.0,214.22,214.21,14.39022378]
[1736147954100,2.42,214.28,214.21,14.39022378]
[1736147954306,2.42,214.28,214.24,14.39022378]
[1736147954624,30.0,214.25,214.24,14.39022378]
[1736147955119,30.0,214.25,214.22,14.39022378]
[1736147958899,30.0,214.25,214.24,14.39022378]
[1736147959498,2.42,214.33,214.24,14.39022378]
[1736147959720,2.42,214.33,214.27,14.39022378]
[1736147960016,30.0,214.28,214.25,14.39022378]
[1736147960206,30.0,214.28,214.24,14.39022378]
[1736147960535,30.0,214.28,214.25,14.39022378]
[1736147963403,30.0,214.28,214.26,14.39022378]
[1736147963605,30.0,214.28,214.27,14.39022378]
[1736147963828,30.0,214.28,214.25,14.39022378]
[1736147964703,30.0,214.28,214.19,11.6718]
[1736147964704,30.0,214.28,214.26,14.39022378]
[1736147964902,30.0,214.28,214.27,14.39022378]
[1736147966915,20.0,214.34,214.27,14.39022378]
[1736147967086,14.39022378,214.38,214.31,14.39022378]
[1736147967293,30.0,214.32,214.31,14.39022378]
[1736147969209,30.0,214.32,214.23,74.276884]
[1736147969210,30.0,214.32,214.3,14.39022378]
[1736147970428,30.0,214.32,214.27,14.39022378]
[1736147971112,30.0,214.32,214.26,14.39022378]
[1736147973722,30.0,214.32,214.18,63.7214]
[1736147973723,14.39022378,214.31,214.24,14.39022378]
[1736147973918,14.39022378,214.31,214.23,14.39022378]
[1736147973919,30.0,214.3,214.23,14.39022378]
[1736147974822,30.0,214.3,214.24,14.39022378]
[1736147975024,30.0,214.3,214.24,9.20915281]
[1736147978625,30.0,214.3,214.26,9.20915281]
[1736147979101,30.0,214.3,214.25,9.20915281]
[1736147980118,30.0,214.3,214.24,9.20915281]
[1736147980626,20.0,214.26,214.21,9.20915281]
[1736147980926,30.0,214.25,214.2,9.20915281]
[1736147985340,30.0,214.25,214.24,9.20915281]
[1736147985914,2.52,214.3,214.24,9.20915281]
[1736147986115,20.0,214.29,214.24,9.20915281]
[1736147987734,20.0,214.29,214.25,9.20915281]
[1736147989036,22.52,214.33,214.28,9.20915281]
[1736147989213,30.0,214.29,214.28,9.20915281]
[1736147989540,2.52,214.33,214.28,9.20915281]
[1736147989740,20.0,214.32,214.27,9.20915281]
[1736147990128,20.0,214.31,214.27,9.20915281]
[1736147990529,20.0,214.32,214.19,86.64837777]
[1736147990728,20.0,214.32,214.29,9.20915281]
[1736147991037,20.0,214.35,214.31,9.20915281]
[1736147992412,30.0,214.32,214.31,9.20915281]
[1736147998948,20.0,214.35,214.31,9.20915281]
[1736148000548,20.0,214.35,214.32,9.20915281]
[1736148000948,20.0,214.35,214.31,9.20915281]